[Event "Reykjavik Open 2022"]
[Site "Reykjavik"]
[Date "2022.04.09"]
[Round "5.50"]
[White "Finnbogadottir, Tinna Kristin"]
[Black "Bergsson, Stefan"]
[Result "0-1"]
[ECO "A48"]
[WhiteElo "1848"]
[BlackElo "2095"]
[Annotator "TA"]
[PlyCount "128"]
[EventDate "2022.04.06"]
[EventCountry "ISL"]
[SourceTitle "playchess.com"]
[Source "ChessBase"]
[SourceQuality "1"]
[TimeControl "40/5400+30:1800+30"]

{[%evp 13,128,-2,0,0,2,-3,4,6,10,0,17,6,6,-19,0,-4,-14,-15,-14,-29,-25,-29,-22,-22,-30,-36,0,-17,8,7,91,-39,-5,0,0,-49,-2,-106,97,104,107,-36,-25,-105,-59,-68,-32,-96,0,0,0,0,207,204,195,200,233,-27,-28,-77,-79,-64,-30,-20,65,-112,-126,-527,-518,-1720,-1638,-29951,-5631,-29959,-29961,-29972,-29973,-29971,-29970,-29989,-29984,-29990,-29973,-29973,-5057,-29964,-29963,-29963,-29967,-29967,-29965,-29965,-29967,-29967,-29961,-29973,-29974,-29973,-29969,-29974,-29976,-29980,-29981,-29981,-29979,-29983,-29984,-29984,-29982,-29985,-29986,-29992,-29991,-29991,-29990,-29994,-29995]} 1. d4 {[%emt 0:00:01]} Nf6 {[%emt 0:01:35]} 2. Nf3 {[%emt 0:00:06]} g6 {[%emt 0:02:34]} 3. e3 {[%emt 0:00:25]} Bg7 {[%emt 0:00:07]} 4. Bd3 {[%emt 0:00:11]} O-O {[%emt 0:00:09]} 5. O-O {[%emt 0:00:20]} c5 {[%emt 0:01:28]} 6. c3 {[%emt 0:02:58]} d6 {[%emt 0:01:23]} 7. Nbd2 {[%emt 0:04:23]} Nc6 {[%emt 0:02:25]} 8. Re1 {[%emt 0:05:34] A48: 1 d4 Nf6 2 Nf3 g6: Torre, London and Colle Systems.} e5 {[%emt 0:00:40]} 9. dxc5 {[%emt 0:16:45]} dxc5 {[%emt 0:00:27]} 10. Qc2 {[%emt 0:02:17] The position is equal.} Qc7 {[%emt 0:01:34]} 11. e4 {[%emt 0:02:26] [#]} Bg4 $146 {[%emt 0:02:42]} ({Predecessor:} 11... b6 12. Nf1 h6 13. Ne3 Be6 14. Bb5 Ne7 15. Bc4 {½-½ (15) Horak,V (2155)-Belohlav,J (1977) Czech Republic 2004}) 12. Bf1 {[%emt 0:02:42]} Rab8 {[%emt 0:01:07]} 13. g3 {[%emt 0:04:30]} b5 {[%emt 0:00:42]} 14. Bg2 {[%emt 0:00:12]} Rfd8 {[%emt 0:02:10]} 15. Nf1 {[%emt 0:00:14]} h6 {[%emt 0:00:21]} 16. Be3 {[%emt 0:00:17]} c4 {[%emt 0:04:51]} 17. Rad1 {[%emt 0:02:20]} a5 {[%emt 0:00:16]} 18. h3 {[%emt 0:04:31]} Be6 {[%emt 0:00:16]} 19. a3 {[%emt 0:02:01]} Rdc8 {[%emt 0:02:14]} 20. g4 {[%emt 0:01:05]} Nd7 {[%emt 0:01:13]} 21. Ng3 {[%emt 0:04:12][%cal Og3f5]} Nb6 {[%emt 0:02:13] [#]} (21... Ne7 $11 {remains equal.}) 22. Nh2 {[%emt 0:05:19]} (22. Nf5 $1 $16) 22... b4 {[%emt 0:01:41]} 23. axb4 {[%emt 0:00:14]} axb4 {[%emt 0:00:07]} 24. Qc1 {[%emt 0:03:56]} (24. h4 $1 $11) 24... Kh7 {[%emt 0:00:17]} (24... Na4 $15 {deserves consideration.} 25. Nf5 g5) 25. Bc5 {[%emt 0:00:18]} (25. Nf5 $1 $11) 25... Bf8 $2 {[%emt 0:03:12]} (25... Rd8 $17 {keeps the pressure on. Strongly threatening ...Na4.} 26. Qc2 (26. cxb4 Na4 $17) 26... b3) 26. Bxf8 $16 {[%emt 0:01:30]} ({Stronger than} 26. cxb4 f6 27. Bxf8 Rxf8 $15) 26... Rxf8 {[%emt 0:00:02] [#]} 27. Qe3 {[%emt 0:05:13]} ({White has to play} 27. Nf5 $1 $16 {[%mdl 512]} g5 (27... Bxf5 28. exf5) 28. h4) 27... Na4 {[%emt 0:00:36]} 28. Rd2 {[%emt 0:04:58]} (28. Nf5 $1 $11 {was the only way to keep the balance.} g5 29. Rd2) 28... bxc3 {[%emt 0:08:27]} (28... Rfd8 $17 29. Nf3 Rd3 30. Rxd3 cxd3) 29. bxc3 $15 {[%emt 0:00:32][%cal Og3f5]} Rb3 {[%emt 0:00:38]} 30. Rc1 {[%emt 0:00:07] [#]} (30. Nf5 $1 $15 gxf5 31. exf5 Rxc3 32. Qe4) 30... Nb4 {[%emt 0:05:26]} 31. Nf5 $1 $11 {[%emt 0:00:33]} gxf5 {[%emt 0:14:39] Active counter play!} 32. gxf5 {[%emt 0:00:07] Ng4 is the strong threat.} Bc8 $2 {[%emt 0:03:18]} (32... Nd3 $11 {and Black has nothing to worry.} 33. Rxd3 cxd3) 33. Ng4 $18 {[%emt 0:00:54]} Qc6 {[%emt 0:04:32] aiming for ...Nd3.} 34. Nxe5 {[%emt 0:01:29]} Qa6 {[%emt 0:00:48][%cal Ob4d3] [#]} 35. Bf1 {[%emt 0:04:19] Against Nd3} ({White must play} 35. Ng4 $1 $18 {Threatens to win with e5.} Nd3 36. Ra1) 35... Nd3 $11 {[%emt 0:02:14]} 36. Nxd3 {[%emt 0:00:47]} (36. Bxd3 $11 {might be stronger.} cxd3 37. Rxd3) 36... cxd3 {[%emt 0:00:03]} 37. Bxd3 {[%emt 0:02:22]} Qf6 {[%emt 0:06:20]} 38. e5 {[%emt 0:02:06]} Rg8+ {[%emt 0:00:11]} (38... Qg5+ $11 39. Qxg5 hxg5) 39. Kf1 $2 {[%emt 0:00:20]} (39. Kh2 $1 $14 {was the only good move.} Qh4 40. e6) 39... Qh4 $36 {[%emt 0:00:28][%mdl 2048] Black is really pushing.} 40. Ra1 $2 {[%emt 0:00:00][%mdl 8192]} (40. e6 $17 {nothing else works.} Nb2 41. exf7) 40... Rxc3 $19 {[%emt 0:00:00]} 41. f6+ {[%emt 0:08:44]} (41. e6 $142 Nc5 42. exf7) 41... Kh8 {[%emt 0:10:09]} 42. Rxa4 {[%emt 0:00:29]} Rc1+ {[%emt 0:00:33]} 43. Ke2 {[%emt 0:00:35]} Qh5+ {[%emt 0:00:41]} 44. Qf3 {[%emt 0:05:56] [#]} Re1+ $1 {[%emt 0:00:30][%mdl 576] Skewer, Deflection} 45. Kxe1 {[%emt 0:00:11]} Qxf3 {[%emt 0:00:09]} 46. Rh4 {[%emt 0:02:04]} Rg1+ {[%emt 0:04:41]} 47. Bf1 {[%emt 0:00:05]} Rxf1+ {[%emt 0:00:04]} 48. Kxf1 {[%emt 0:00:08]} Bxh3+ {[%emt 0:00:01]} (48... Qh1+ $142 49. Ke2 Ba6+ 50. Ke3 Qe1+ 51. Kf4 Qxd2+ 52. Kg3 Qc3+ 53. Kf4 Qc4+ 54. Kg3 Qc3+ 55. Kf4 Qc1+ 56. Kf5 Qc2+ 57. Kf4 Qxf2+ 58. Ke4 Qxh4+ 59. Ke3 Qe1+ 60. Kd4 Qb4+ 61. Ke3 Qc3+ 62. Kf4 Bb7 63. e6 Qf3+ 64. Ke5 Qd5+ 65. Kf4 Qg5#) 49. Ke1 {[%emt 0:01:04]} Qh1+ {[%emt 0:00:12] Black mates.} 50. Ke2 {[%emt 0:00:33]} Bf1+ {[%emt 0:00:17]} 51. Ke1 {[%emt 0:00:20]} Qxh4 {[%emt 0:00:02]} 52. Kxf1 {[%emt 0:00:08] KQ-KR} Qh1+ {[%emt 0:00:01]} 53. Ke2 {[%emt 0:00:22]} Qh5+ {[%emt 0:00:46]} 54. f3 {[%emt 0:00:37]} Qxe5+ {[%emt 0:00:09]} 55. Kf2 {[%emt 0:00:05]} Qxf6 {[%emt 0:00:12]} 56. Re2 {[%emt 0:00:19]} h5 {[%emt 0:00:29][%cal Bh6h5,Bh5h4,Bh4h3,Bh3h2][%mdl 32]} 57. Kg2 {[%emt 0:02:24]} Qg5+ {[%emt 0:00:28]} 58. Kf2 {[%emt 0:00:36]} f5 {[%emt 0:00:13]} 59. Re1 {[%emt 0:01:38]} h4 {[%emt 0:00:11]} 60. Rg1 {[%emt 0:00:07]} Qd2+ {[%emt 0:00:02]} 61. Kf1 {[%emt 0:00:26]} h3 {[%emt 0:00:37]} 62. f4 {[%emt 0:00:53]} Qxf4+ {[%emt 0:01:04]} 63. Ke2 {[%emt 0:01:15]} h2 {[%emt 0:00:40]} 64. Ra1 {[%emt 0:00:36]} Qe5+ {[%emt 0:00:43] Quite a comeback for Black.  Weighted Error Value: White=0.90/Black=0.40} 0-1

[Event "Reykjavik Open 2022"]
[Site "Reykjavik"]
[Date "2022.04.09"]
[Round "5.52"]
[White "Finnsson, Johann Arnar"]
[Black "Mai, Aron Thor"]
[Result "0-1"]
[ECO "A16"]
[WhiteElo "1805"]
[BlackElo "2081"]
[Annotator "TA"]
[PlyCount "96"]
[EventDate "2022.04.06"]
[EventCountry "ISL"]
[SourceTitle "playchess.com"]
[Source "ChessBase"]
[SourceQuality "1"]
[TimeControl "40/5400+30:1800+30"]

{[%evp 10,96,16,25,16,9,21,26,26,22,22,18,35,0,0,-59,-56,-58,-52,-107,-65,-66,-67,-67,-68,-118,-93,-118,-118,-117,-87,-137,-107,-133,-128,-119,-37,-35,-33,-34,-30,-35,-34,-48,0,0,13,31,64,0,159,0,41,0,0,0,0,0,0,0,146,138,202,78,132,109,280,0,96,22,65,0,31,0,0,-279,-272,-264,-256,-246,-231,-29993,-29994,-29994,-29995,-29995,-29996,-29996,-29997]} 1. g3 {[%emt 0:00:02]} Nf6 {[%emt 0:03:43]} 2. Bg2 {[%emt 0:00:14]} g6 {[%emt 0:00:11]} 3. c4 {[%emt 0:00:17]} Bg7 {[%emt 0:00:07]} 4. Nc3 {[%emt 0:00:38]} O-O {[%emt 0:00:08]} 5. d3 {[%emt 0:00:44]} d6 {[%emt 0:00:18]} 6. Rb1 {[%emt 0:01:57]} c5 {[%emt 0:02:55] A16: English Opening: 1...Nf6 with ...d5.} 7. e3 {[%emt 0:04:23]} Nc6 {[%emt 0:00:42]} 8. Nge2 {[%emt 0:00:22]} Bd7 {[%emt 0:00:42] White has an edge.} 9. a3 {[%emt 0:02:17]} Rb8 {[%emt 0:03:20]} 10. b4 {[%emt 0:03:57]} b6 {[%emt 0:01:18] [#]} 11. h4 $146 {[%emt 0:07:48]} ({Predecessor:} 11. O-O e6 12. Bd2 Ne5 13. Qc2 a6 14. f4 Nc6 15. b5 axb5 16. Nxb5 Be8 17. Bc3 {½-½ (55) Malin,C (1928)-Rapin,F (1810) Angers 2010}) 11... Ne5 {[%emt 0:01:46][%cal Bc6e5,Be5d7,Bd7f6,Bf6g4,Bg4f2][%mdl 32]} 12. b5 {[%emt 0:02:22]} (12. Nf4 $11) 12... Bg4 $15 {[%emt 0:02:31]} 13. f4 {[%emt 0:02:00]} Ned7 {[%emt 0:01:31]} 14. Qa4 {[%emt 0:08:20]} (14. Bb2 $15) 14... Qc7 {[%emt 0:01:42]} 15. Bb2 {[%emt 0:15:56]} e6 {[%emt 0:03:54]} 16. O-O {[%emt 0:09:38]} Nh5 {[%emt 0:04:42]} 17. Bf3 {[%emt 0:06:01]} (17. Qc2 $15) 17... Ndf6 {[%emt 0:03:42]} 18. e4 {[%emt 0:03:47]} Bxf3 {[%emt 0:06:02]} 19. Rxf3 {[%emt 0:00:06]} Ng4 {[%emt 0:00:45]} 20. Nd1 {[%emt 0:02:39]} (20. Rbf1 $142) 20... f5 {[%emt 0:02:24]} 21. Nf2 {[%emt 0:00:47]} Nxf2 {[%emt 0:03:40] &Nero is more active.} 22. Kxf2 {[%emt 0:05:10]} Nf6 {[%emt 0:02:02]} (22... Bxb2 $17 23. Rxb2 Qb7 24. exf5 exf5) 23. Bxf6 {[%emt 0:02:37]} Bxf6 {[%emt 0:00:39]} 24. Qc2 {[%emt 0:03:03]} Rbe8 {[%emt 0:01:37]} 25. Re1 {[%emt 0:01:17]} Qd7 {[%emt 0:01:46]} 26. a4 {[%emt 0:00:55]} fxe4 {[%emt 0:07:57]} (26... a6 $15) 27. dxe4 $11 {[%emt 0:00:08]} d5 {[%emt 0:00:53]} (27... Bd4+ $5 28. Kg2 e5 $11) 28. e5 {[%emt 0:00:21]} Bg7 {[%emt 0:00:35]} 29. Rd1 {[%emt 0:00:06]} (29. Nc3 $14) 29... Qb7 $2 {[%emt 0:03:21]} ({Black should play} 29... Qf7 $11) 30. Ng1 $2 {[%emt 0:05:39]} (30. cxd5 $16 {And now Qb3 would win.} exd5 31. Qa2) 30... d4 {[%emt 0:02:25]} 31. Re1 {[%emt 0:01:05]} Ra8 {[%emt 0:01:46]} 32. Rb3 {[%emt 0:02:29]} a6 {[%emt 0:06:45]} 33. Nf3 {[%emt 0:00:26]} axb5 {[%emt 0:01:13]} 34. Rxb5 {[%emt 0:00:06]} Qc6 {[%emt 0:00:40] [#]} (34... Bh6 $1 $11 {keeps the balance.}) 35. Reb1 $1 $16 {[%emt 0:00:52]} Ra6 {[%emt 0:00:56]} (35... Bh6 $16 {keeps fighting.}) 36. R1b2 {[%emt 0:02:27]} (36. h5 $18) 36... Rd8 {[%emt 0:03:47]} (36... Bh6 $142) 37. Qd3 {[%emt 0:00:41][%cal Oh4h5] Strongly threatening h5!} Re8 $2 {[%emt 0:06:20]} (37... Bh6 $16 {was worth a try.}) 38. Qc2 $2 {[%emt 0:00:23]} (38. h5 $18) 38... Bf8 {[%emt 0:04:02]} (38... Rd8 $1 $11) 39. Nd2 {[%emt 0:01:18]} (39. h5 $16) 39... Be7 {[%emt 0:07:35]} 40. Ne4 {[%emt 0:00:00]} ({White should try} 40. Qb1 $14) 40... Rf8 {[%emt 0:00:00][%cal Oe7h4]} 41. Qb1 {[%emt 0:13:41][%cal Oa4a5] Black must now prevent a5!} (41. a5 $5 {[%cal Rb5b6]}) 41... Bxh4 $1 {[%emt 0:13:18] ...Rxf4+ is the strong threat.} 42. Rxb6 $2 {[%emt 0:05:23][%mdl 8192]} (42. Kf3 $11 {and White stays safe.} Bd8 43. a5) 42... Rxb6 $19 {[%emt 0:03:36]} ({Don't do} 42... Qxa4 43. gxh4 Rxf4+ 44. Kg3 Rxb6 45. Rxb6 Qa3+ 46. Rb3 $18 (46. Kxf4 $2 Qe3+ 47. Kg4 h5#)) 43. Rxb6 {[%emt 0:00:33]} Rxf4+ $1 {[%emt 0:00:58]} ({Don't take} 43... Qxa4 44. gxh4 Rxf4+ 45. Kg3 Qa3+ 46. Rb3 $18 (46. Kxf4 $2 {leads to mate.} Qe3+ 47. Kg4 h5#)) 44. Kg1 {[%emt 0:02:08]} Qxe4 {[%emt 0:00:44]} 45. gxf4 $2 {[%emt 0:05:33] [#]} (45. Qxe4 $19 Rxe4 46. gxh4) 45... Qe3+ {[%emt 0:01:11] Black mates.} 46. Kg2 {[%emt 0:01:05]} Qf2+ {[%emt 0:01:32]} 47. Kh1 {[%emt 0:00:11]} Qf3+ {[%emt 0:00:11]} 48. Kg1 {[%emt 0:01:46]} Bf2+ {[%emt 0:00:48] Weighted Error Value: White=0.57/Black=0.36} 0-1

[Event "Reykjavik Open 2022"]
[Site "Reykjavik"]
[Date "2022.04.09"]
[Round "5.53"]
[White "Hauksdottir, Hrund"]
[Black "Bosboom, Ardin"]
[Result "0-1"]
[ECO "B33"]
[WhiteElo "1737"]
[BlackElo "2090"]
[Annotator "NA RC"]
[PlyCount "58"]
[EventDate "2022.04.06"]
[EventCountry "ISL"]
[SourceTitle "playchess.com"]
[Source "ChessBase"]
[SourceQuality "1"]
[TimeControl "40/5400+30:1800+30"]

1. e4 {[%emt 0:00:05]} c5 {[%emt 0:00:08]} 2. Nf3 {[%emt 0:00:14]} Nc6 {[%emt 0:00:06]} 3. d4 {[%emt 0:00:13]} cxd4 {[%emt 0:00:05]} 4. Nxd4 {[%emt 0:00:07]} Nf6 {[%emt 0:00:05]} 5. Nc3 {[%emt 0:00:37]} e5 {[%emt 0:00:08]} 6. Ndb5 {[%emt 0:01:15]} d6 {[%emt 0:00:06]} 7. Bg5 {[%emt 0:00:30]} a6 {[%emt 0:00:05]} 8. Na3 {[%emt 0:00:35]} b5 {[%emt 0:00:06]} 9. Nd5 {[%emt 0:01:00]} Be7 {[%emt 0:00:06]} 10. Bxf6 {[%emt 0:03:20]} Bxf6 {[%emt 0:00:06]} 11. Be2 {[%emt 0:08:43]} O-O {[%emt 0:03:45]} 12. O-O {[%emt 0:02:15]} Ne7 {[%emt 0:05:47]} 13. c4 {[%emt 0:04:23]} Nxd5 {[%emt 0:03:57]} 14. cxd5 {[%emt 0:03:13]} Bg5 {[%emt 0:02:23]} 15. Nc2 {[%emt 0:06:40]} f5 {[%emt 0:01:38]} 16. exf5 {[%emt 0:14:17]} Bxf5 {[%emt 0:00:07]} 17. Bd3 {[%emt 0:01:17]} Qb6 {[%emt 0:06:02]} 18. Bxf5 {[%emt 0:09:04]} Rxf5 {[%emt 0:00:05]} 19. Qe2 {[%emt 0:11:48]} Raf8 {[%emt 0:00:32]} 20. Rad1 {[%emt 0:02:11]} h5 {[%emt 0:06:51]} 21. Rd3 {[%emt 0:01:36]} Qc5 {[%emt 0:01:10]} 22. b4 {[%emt 0:07:54]} Qc4 {[%emt 0:02:12]} 23. a3 {[%emt 0:00:44]} e4 {[%emt 0:01:05]} 24. Re3 {[%emt 0:02:03]} Bxe3 {[%emt 0:00:15]} 25. Qxc4 {[%emt 0:00:14]} Bxf2+ {[%emt 0:00:08]} 26. Rxf2 {[%emt 0:00:51]} bxc4 {[%emt 0:00:07]} 27. Rxf5 {[%emt 0:00:54]} Rxf5 {[%emt 0:00:05]} 28. Ne3 {[%emt 0:00:29]} c3 {[%emt 0:00:20]} 29. h3 {[%emt 0:01:11]} Rxd5 {[%emt 0:00:23]} 0-1

[Event "Reykjavik Open 2022"]
[Site "Reykjavik"]
[Date "2022.04.09"]
[Round "5.54"]
[White "Haugen, Lars Tormod"]
[Black "Dougherty, Michael"]
[Result "0-1"]
[ECO "A26"]
[WhiteElo "1710"]
[BlackElo "2066"]
[Annotator "TA"]
[PlyCount "116"]
[EventDate "2022.04.06"]
[EventCountry "ISL"]
[SourceTitle "playchess.com"]
[Source "ChessBase"]
[SourceQuality "1"]
[TimeControl "40/5400+30:1800+30"]

{[%evp 12,116,0,0,0,6,73,68,72,83,90,98,104,63,63,62,63,59,85,87,89,89,80,58,91,-33,-40,-35,-29,-66,-54,-95,-70,-98,-93,-105,-99,-163,-163,-163,-150,-163,-68,-68,-68,-75,-60,-62,-40,-40,-40,-43,-43,-47,-37,-51,-25,-41,-37,-52,-60,-71,-53,-156,-156,-156,-156,-156,-156,-156,-156,-156,-156,-674,-662,-636,-606,-537,-235,-992,-1174,-1179,-1089,-1173,-1143,-1195,-1170,-1116,-988,-962,-900,-1331,-1302,-12831,-2812,-12844,-12845,-29985,-29986,-29988,-29989,-29989,-29990,-29990,-29991,-29991,-29992]} 1. c4 {[%emt 0:01:32]} g6 {[%emt 0:00:24]} 2. Nc3 {[%emt 0:00:18]} Bg7 {[%emt 0:00:08]} 3. g3 {[%emt 0:00:18]} d6 {[%emt 0:01:39]} 4. Bg2 {[%emt 0:00:07]} e5 {[%emt 0:01:10]} 5. d3 {[%emt 0:01:22]} Nc6 {[%emt 0:01:45]} 6. e4 {[%emt 0:02:51]} Nd4 {[%emt 0:03:13]} 7. Nge2 {[%emt 0:02:43]} h5 {[%emt 0:05:00] A26: English Opening vs King's Indian with ...Nc6 and d3.} 8. h3 {[%emt 0:04:39]} g5 {[%emt 0:10:40]} (8... Bd7 $11) 9. Nxd4 $16 {[%emt 0:09:47]} exd4 {[%emt 0:00:09] White is slightly better.} 10. Ne2 {[%emt 0:00:54]} h4 {[%emt 0:07:47]} 11. g4 $1 {[%emt 0:16:46]} Be5 {[%emt 0:06:06] [#]} 12. f4 $146 {[%emt 0:10:28]} ({Predecessor:} 12. Bd2 c5 13. Qc1 f6 14. f4 gxf4 15. Nxf4 Ne7 16. Qc2 Kd7 17. O-O Kc7 18. Rf3 {½-½ (27) Namini,A (2237)-Karlsson,L (2454) Stockholm 2019}) 12... gxf4 {[%emt 0:02:58]} 13. Nxf4 {[%emt 0:02:28]} Ne7 {[%emt 0:09:48][%cal Bg8e7,Be7g6,Bg6e5][%mdl 32]} 14. O-O {[%emt 0:01:43]} Be6 {[%emt 0:02:23]} 15. Nxe6 {[%emt 0:07:26]} fxe6 {[%emt 0:00:11]} 16. Bg5 {[%emt 0:04:05]} Qd7 {[%emt 0:06:16]} 17. Qd2 {[%emt 0:04:00]} Ng6 {[%emt 0:05:06]} 18. Bf6 {[%emt 0:06:38]} (18. b4 $16) 18... Bxf6 $15 {[%emt 0:03:45]} 19. Rxf6 {[%emt 0:00:04]} Ne5 {[%emt 0:00:16]} 20. Raf1 {[%emt 0:07:36]} O-O-O {[%emt 0:03:25]} 21. R1f4 {[%emt 0:01:00]} c5 {[%emt 0:07:28]} 22. Bf1 {[%emt 0:00:08]} Qg7 $1 {[%emt 0:08:08]} 23. Qf2 {[%emt 0:01:39]} Rh6 {[%emt 0:04:16] 0x0.0021bc9c0ca5dp-1022s more active pieces.} 24. Be2 {[%emt 0:01:54] [#]} (24. Rf8 $17) 24... Rxf6 $1 $19 {[%emt 0:03:25]} 25. Rxf6 {[%emt 0:00:04] [#]} Kd7 {[%emt 0:00:13]} 26. Kg2 {[%emt 0:02:15]} ({Not} 26. Qxh4 $2 Rh8 27. Qf2 Rxh3 $19) 26... Qg5 {[%emt 0:01:50]} (26... Ke7 $19 27. Rf4 Qh6) 27. Qf4 $15 {[%emt 0:03:55]} Qxf4 {[%emt 0:01:29]} 28. Rxf4 {[%emt 0:00:02][%mdl 4096] Endgame KRB-KRN} Ke7 {[%emt 0:00:28]} 29. g5 {[%emt 0:02:23]} Ng6 {[%emt 0:01:27]} 30. Rf6 {[%emt 0:01:06]} Rg8 {[%emt 0:01:46] aiming for ...Ne5.} 31. Bg4 {[%emt 0:01:44]} Nf8 {[%emt 0:00:02]} 32. Rh6 $1 {[%emt 0:00:32]} Rxg5 {[%emt 0:00:06] ...Ng6 is the strong threat.} 33. Rxh4 {[%emt 0:00:38]} Rg7 {[%emt 0:00:54]} 34. Rh6 {[%emt 0:01:11]} a6 {[%emt 0:00:41][%cal Ba7a6,Ba6b5,Bb5b4][%mdl 32]} 35. Kf3 {[%emt 0:01:15]} Ng6 {[%emt 0:01:10]} 36. Ke2 {[%emt 0:00:45]} b5 {[%emt 0:00:38]} 37. cxb5 {[%emt 0:00:29]} (37. b3 $1 $15) 37... axb5 $17 {[%emt 0:00:06]} 38. Kd2 {[%emt 0:00:59]} Nf4 {[%emt 0:01:52]} 39. b3 {[%emt 0:00:56]} b4 {[%emt 0:00:30]} 40. Kc2 {[%emt 0:00:00]} Rg8 {[%emt 0:00:00] Strongly threatening ...Ra8.} 41. Rh7+ {[%emt 0:02:13]} Kf6 {[%emt 0:03:32]} 42. Rh6+ $2 {[%emt 0:15:10] Now White is beyond hope.} (42. a4 $17) 42... Ke5 $19 {[%emt 0:03:07]} 43. Kb1 {[%emt 0:02:36]} Ra8 {[%emt 0:03:37]} 44. Ka1 {[%emt 0:00:37]} d5 {[%emt 0:04:16]} (44... Re8 $142 45. Bh5 Re7) 45. Bxe6 $2 {[%emt 0:11:22]} (45. exd5 exd5 46. Kb1) 45... dxe4 {[%emt 0:00:56]} 46. Bg4 {[%emt 0:00:43]} Nxd3 {[%emt 0:00:15]} 47. Kb1 {[%emt 0:00:47]} Kf4 {[%emt 0:00:38]} 48. Rf6+ {[%emt 0:00:39]} Ke3 {[%emt 0:00:31] And now ...Nf2 would win.} 49. Rf1 {[%emt 0:00:59]} Re8 {[%emt 0:04:18]} 50. Kc2 {[%emt 0:01:05]} Nf4 {[%emt 0:01:40]} 51. Kd1 {[%emt 0:00:33]} Nd5 {[%emt 0:01:23] Hoping for ...d3.} 52. Kc2 {[%emt 0:00:27]} d3+ {[%emt 0:00:16]} 53. Kb2 {[%emt 0:00:20]} Kd4 {[%emt 0:00:48] ( -> ...e3)} 54. Bf5 {[%emt 0:00:39]} Ne3 {[%emt 0:00:17] Black mates.} 55. Rf4 {[%emt 0:00:18]} Nxf5 {[%emt 0:00:30]} 56. Rxf5 {[%emt 0:00:02]} e3 {[%emt 0:00:17]} 57. Rf4+ {[%emt 0:00:42]} Re4 {[%emt 0:00:26]} 58. Rxe4+ {[%emt 0:00:47]} Kxe4 {[%emt 0:00:32] Weighted Error Value: White=0.79/Black=0.16 (very precise)} 0-1